[Event "*** SCC Grand Prix: Titled Tuesday Blitz"]
[Site "Chess.com"]
[Date "2020.08.25"]
[Round "2"]
[White "blitzking1729"]
[Black "GlennTipton"]
[Result "1/2-1/2"]
[WhiteElo "2667"]
[BlackElo "2437"]
[TimeControl "180+1"]
[EndTime "10:19:19 PDT"]
[Termination "Game drawn by repetition"]

1. d4 {[%clk 0:03:00.9]} 1... Nf6 {[%clk 0:02:59.7]} 2. Bg5 {[%clk 0:03:00.1]}
2... g6 {[%clk 0:02:57.8]} 3. Bxf6 {[%clk 0:02:59.4]} 3... exf6 {[%clk
0:02:58.7]} 4. e3 {[%clk 0:02:59.2]} 4... Bg7 {[%clk 0:02:59]} 5. g3 {[%clk
0:02:59.3]} 5... f5 {[%clk 0:02:59.3]} 6. Bg2 {[%clk 0:02:59.5]} 6... c5 {[%clk
0:02:59.9]} 7. Ne2 {[%clk 0:02:56.6]} 7... Qb6 {[%clk 0:02:54.5]} 8. Nbc3 {[%clk
0:02:52.9]} 8... O-O {[%clk 0:02:49.9]} 9. O-O {[%clk 0:02:48.4]} 9... cxd4
{[%clk 0:02:39.1]} 10. Nd5 {[%clk 0:02:40.1]} 10... Qxb2 {[%clk 0:02:34.1]} 11.
Rb1 {[%clk 0:02:37.2]} 11... Qa3 {[%clk 0:02:33.6]} 12. Nc7 {[%clk 0:02:17.3]}
12... dxe3 {[%clk 0:02:32.7]} 13. Nxa8 {[%clk 0:02:16.9]} 13... exf2+ {[%clk
0:02:32.9]} 14. Rxf2 {[%clk 0:02:17.1]} 14... Na6 {[%clk 0:02:29.4]} 15. Rb3
{[%clk 0:02:02.2]} 15... Qc5 {[%clk 0:02:23.3]} 16. c3 {[%clk 0:01:31.3]} 16...
d6 {[%clk 0:02:05.8]} 17. Nd4 {[%clk 0:01:13.7]} 17... d5 {[%clk 0:01:47.1]} 18.
Kh1 {[%clk 0:01:04]} 18... Qd6 {[%clk 0:01:15.2]} 19. Nb5 {[%clk 0:01:00.2]}
19... Qb8 {[%clk 0:01:15]} 20. Bxd5 {[%clk 0:00:50.4]} 20... Qxa8 {[%clk
0:01:14.4]} 21. Nd6 {[%clk 0:00:48.3]} 21... Nc5 {[%clk 0:01:10.4]} 22. Rb5
{[%clk 0:00:44.8]} 22... Ne6 {[%clk 0:00:55.6]} 23. Re2 {[%clk 0:00:34.6]} 23...
Qb8 {[%clk 0:00:47.6]} 24. Nxc8 {[%clk 0:00:27.6]} 24... Qxc8 {[%clk 0:00:44.2]}
25. Bxe6 {[%clk 0:00:24.8]} 25... fxe6 {[%clk 0:00:43.6]} 26. Qd6 {[%clk
0:00:24.4]} 26... Qxc3 {[%clk 0:00:36.3]} 27. Qxe6+ {[%clk 0:00:24.2]} 27... Kh8
{[%clk 0:00:36.6]} 28. Rxb7 {[%clk 0:00:24]} 28... a5 {[%clk 0:00:35]} 29. a4
{[%clk 0:00:21.8]} 29... Qa1+ {[%clk 0:00:33.1]} 30. Kg2 {[%clk 0:00:21.8]}
30... Qxa4 {[%clk 0:00:31.6]} 31. Rd2 {[%clk 0:00:19.8]} 31... Re8 {[%clk
0:00:24.7]} 32. Qd7 {[%clk 0:00:16.3]} 32... Qe4+ {[%clk 0:00:22.2]} 33. Kh3
{[%clk 0:00:13]} 33... Qg4+ {[%clk 0:00:20.9]} 34. Kg2 {[%clk 0:00:13.4]} 34...
Qe4+ {[%clk 0:00:19.9]} 35. Kg1 {[%clk 0:00:09.6]} 35... Qe1+ {[%clk 0:00:20.1]}
36. Kg2 {[%clk 0:00:10]} 36... Qe4+ {[%clk 0:00:19.8]} 1/2-1/2

[Event "*** SCC Grand Prix: Titled Tuesday Blitz"]
[Site "Chess.com"]
[Date "2020.08.25"]
[Round "2"]
[White "SilviusTiberius"]
[Black "Arjun2002"]
[Result "0-1"]
[WhiteElo "2462"]
[BlackElo "2688"]
[TimeControl "180+1"]
[EndTime "10:19:20 PDT"]
[Termination "Arjun2002 won by resignation"]

1. e4 {[%clk 0:03:00.9]} 1... c5 {[%clk 0:02:57.1]} 2. Nf3 {[%clk 0:03:01.1]}
2... Nc6 {[%clk 0:02:56.7]} 3. d4 {[%clk 0:03:01.5]} 3... cxd4 {[%clk
0:02:57.6]} 4. Nxd4 {[%clk 0:03:01.8]} 4... Nf6 {[%clk 0:02:58]} 5. Nc3 {[%clk
0:03:01.7]} 5... h5 {[%clk 0:02:54.5]} 6. Bg5 {[%clk 0:02:54.6]} 6... Qa5 {[%clk
0:02:52.6]} 7. Bxf6 {[%clk 0:02:35.4]} 7... gxf6 {[%clk 0:02:51.7]} 8. Nb3
{[%clk 0:02:33.3]} 8... Qe5 {[%clk 0:02:50.1]} 9. g3 {[%clk 0:02:23.2]} 9... h4
{[%clk 0:02:42.9]} 10. f4 {[%clk 0:02:12.7]} 10... Qb8 {[%clk 0:02:39.3]} 11.
Bg2 {[%clk 0:02:06.6]} 11... e6 {[%clk 0:02:38.5]} 12. Qd2 {[%clk 0:01:49.6]}
12... b5 {[%clk 0:02:30.5]} 13. a4 {[%clk 0:01:43.4]} 13... b4 {[%clk
0:02:26.2]} 14. Nb5 {[%clk 0:01:43.8]} 14... a6 {[%clk 0:02:25.7]} 15. N5d4
{[%clk 0:01:43.4]} 15... Bb7 {[%clk 0:02:25.2]} 16. O-O-O {[%clk 0:01:35.9]}
16... Qc7 {[%clk 0:02:23.6]} 17. Kb1 {[%clk 0:01:11.5]} 17... Be7 {[%clk
0:02:11.8]} 18. Bf3 {[%clk 0:00:40.7]} 18... O-O-O {[%clk 0:01:54.4]} 19. Nxc6
{[%clk 0:00:27.2]} 19... Bxc6 {[%clk 0:01:51.1]} 20. Be2 {[%clk 0:00:25.5]}
20... Kb7 {[%clk 0:01:32.4]} 21. Qd3 {[%clk 0:00:25.6]} 21... Ra8 {[%clk
0:01:27.2]} 22. a5 {[%clk 0:00:17.5]} 22... e5 {[%clk 0:01:23.2]} 23. fxe5
{[%clk 0:00:15.1]} 23... fxe5 {[%clk 0:01:24.1]} 24. Rhf1 {[%clk 0:00:14.8]}
24... f6 {[%clk 0:01:24.4]} 25. Qe3 {[%clk 0:00:13.8]} 25... hxg3 {[%clk
0:01:20.3]} 26. hxg3 {[%clk 0:00:14.7]} 26... d6 {[%clk 0:01:14.9]} 27. Bc4
{[%clk 0:00:14.9]} 27... Rac8 {[%clk 0:01:10.6]} 28. Bd5 {[%clk 0:00:15.3]}
28... Bxd5 {[%clk 0:01:09.6]} 29. Rxd5 {[%clk 0:00:16]} 29... Qxc2+ {[%clk
0:01:09.7]} 30. Ka2 {[%clk 0:00:16.6]} 30... Qc6 {[%clk 0:01:08.1]} 31. Rc1
{[%clk 0:00:16.6]} 31... Qa4+ {[%clk 0:01:07.4]} 32. Kb1 {[%clk 0:00:16.2]}
32... Rxc1+ {[%clk 0:01:07.4]} 33. Nxc1 {[%clk 0:00:16.9]} 33... Qc6 {[%clk
0:01:02.1]} 34. Qb3 {[%clk 0:00:15.9]} 34... Rh1 {[%clk 0:00:50.9]} 35. Qxb4+
{[%clk 0:00:16.3]} 35... Ka7 {[%clk 0:00:47.9]} 36. Qb6+ {[%clk 0:00:16]} 36...
Qxb6 {[%clk 0:00:47.6]} 37. axb6+ {[%clk 0:00:16.9]} 37... Kxb6 {[%clk
0:00:48.3]} 38. Rd3 {[%clk 0:00:17.2]} 38... Re1 {[%clk 0:00:47.1]} 39. Rb3+
{[%clk 0:00:16.5]} 39... Kc6 {[%clk 0:00:46.7]} 40. Kc2 {[%clk 0:00:17.4]} 40...
Rxe4 {[%clk 0:00:45.8]} 41. Nd3 {[%clk 0:00:18.3]} 41... d5 {[%clk 0:00:45.3]}
42. Rc3+ {[%clk 0:00:17.6]} 42... Rc4 {[%clk 0:00:43.1]} 43. Rxc4+ {[%clk
0:00:16.1]} 43... dxc4 {[%clk 0:00:44]} 44. Nf2 {[%clk 0:00:16.2]} 44... f5
{[%clk 0:00:44.4]} 45. g4 {[%clk 0:00:16.7]} 45... f4 {[%clk 0:00:41.3]} 46. Kc3
{[%clk 0:00:16.5]} 46... Kd5 {[%clk 0:00:41.2]} 47. b3 {[%clk 0:00:17]} 47...
cxb3 {[%clk 0:00:41]} 48. Kxb3 {[%clk 0:00:17.7]} 48... e4 {[%clk 0:00:41.1]}
0-1

[Event "*** SCC Grand Prix: Titled Tuesday Blitz"]
[Site "Chess.com"]
[Date "2020.08.25"]
[Round "2"]
[White "azikom"]
[Black "tylityli"]
[Result "1-0"]
[WhiteElo "2614"]
[BlackElo "2200"]
[TimeControl "180+1"]
[EndTime "10:19:20 PDT"]
[Termination "azikom won on time"]

1. e4 {[%clk 0:03:00.2]} 1... e5 {[%clk 0:02:58.5]} 2. Nc3 {[%clk 0:02:59]} 2...
Nf6 {[%clk 0:02:57.1]} 3. Bc4 {[%clk 0:02:57.8]} 3... Nc6 {[%clk 0:02:55.9]} 4.
d3 {[%clk 0:02:56.8]} 4... Na5 {[%clk 0:02:56]} 5. Nge2 {[%clk 0:02:55.3]} 5...
Be7 {[%clk 0:02:51]} 6. Ng3 {[%clk 0:02:50.1]} 6... d6 {[%clk 0:02:50.5]} 7. a4
{[%clk 0:02:45.3]} 7... Nxc4 {[%clk 0:02:49.7]} 8. dxc4 {[%clk 0:02:44.6]} 8...
O-O {[%clk 0:02:44.1]} 9. O-O {[%clk 0:02:41.5]} 9... c6 {[%clk 0:02:44.3]} 10.
b3 {[%clk 0:02:40.1]} 10... a5 {[%clk 0:02:44]} 11. Ba3 {[%clk 0:02:37.3]} 11...
Qc7 {[%clk 0:02:41.9]} 12. Qd3 {[%clk 0:02:35.8]} 12... Be6 {[%clk 0:02:31.4]}
13. Nf5 {[%clk 0:02:28.9]} 13... Bxf5 {[%clk 0:02:23.1]} 14. exf5 {[%clk
0:02:28.6]} 14... Rfd8 {[%clk 0:02:16.9]} 15. Rfe1 {[%clk 0:02:07.5]} 15... d5
{[%clk 0:02:08.7]} 16. Bxe7 {[%clk 0:02:04.1]} 16... Qxe7 {[%clk 0:02:07.5]} 17.
cxd5 {[%clk 0:02:03.1]} 17... Nxd5 {[%clk 0:02:03.3]} 18. Ne4 {[%clk 0:01:59.9]}
18... Nf4 {[%clk 0:01:46.6]} 19. Qf3 {[%clk 0:01:45.6]} 19... f6 {[%clk
0:01:37.2]} 20. g3 {[%clk 0:01:40.5]} 20... Nd5 {[%clk 0:01:35.7]} 21. h4 {[%clk
0:01:40.5]} 21... Nb4 {[%clk 0:01:29.2]} 22. Re2 {[%clk 0:01:33.1]} 22... Rd7
{[%clk 0:01:25.4]} 23. Kg2 {[%clk 0:01:25.7]} 23... Rad8 {[%clk 0:01:25.2]} 24.
Qc3 {[%clk 0:01:25.1]} 24... Rd1 {[%clk 0:01:17.5]} 25. Rxd1 {[%clk 0:01:19.8]}
25... Rxd1 {[%clk 0:01:16.9]} 26. Qc4+ {[%clk 0:01:20.4]} 26... Qf7 {[%clk
0:00:40.8]} 27. Qc5 {[%clk 0:01:02]} 27... Qd5 {[%clk 0:00:33.2]} 28. h5 {[%clk
0:00:52.8]} 28... Rd4 {[%clk 0:00:22.1]} 29. Qxd5+ {[%clk 0:00:41.1]} 29... Rxd5
{[%clk 0:00:16.6]} 30. g4 {[%clk 0:00:30.4]} 30... h6 {[%clk 0:00:14.3]} 31. f3
{[%clk 0:00:30.2]} 31... Kf7 {[%clk 0:00:13.6]} 32. Kf2 {[%clk 0:00:30.7]} 32...
Ke7 {[%clk 0:00:13.3]} 33. c3 {[%clk 0:00:28.2]} 33... Nd3+ {[%clk 0:00:11.5]}
34. Ke3 {[%clk 0:00:28]} 34... Nf4 {[%clk 0:00:07.2]} 35. Rd2 {[%clk 0:00:27.7]}
35... b6 {[%clk 0:00:02]} 36. b4 {[%clk 0:00:27.5]} 1-0

[Event "*** SCC Grand Prix: Titled Tuesday Blitz"]
[Site "Chess.com"]
[Date "2020.08.25"]
[Round "2"]
[White "tigra"]
[Black "bratkoo"]
[Result "1-0"]
[WhiteElo "2903"]
[BlackElo "2554"]
[TimeControl "180+1"]
[EndTime "10:19:21 PDT"]
[Termination "tigra won by checkmate"]

1. e4 {[%clk 0:03:00.9]} 1... e6 {[%clk 0:02:57.1]} 2. d4 {[%clk 0:03:00]} 2...
d5 {[%clk 0:02:56.5]} 3. Nc3 {[%clk 0:03:00.6]} 3... Nf6 {[%clk 0:02:55.7]} 4.
e5 {[%clk 0:02:59.5]} 4... Nfd7 {[%clk 0:02:55.9]} 5. f4 {[%clk 0:03:00]} 5...
c5 {[%clk 0:02:56.8]} 6. Nf3 {[%clk 0:03:00.2]} 6... Nc6 {[%clk 0:02:57.7]} 7.
Be2 {[%clk 0:03:00.5]} 7... cxd4 {[%clk 0:02:39.3]} 8. Nb5 {[%clk 0:02:59]} 8...
Qa5+ {[%clk 0:02:36.2]} 9. Bd2 {[%clk 0:02:35.6]} 9... Qb6 {[%clk 0:02:35.9]}
10. a4 {[%clk 0:02:34.5]} 10... Bc5 {[%clk 0:02:34.5]} 11. a5 {[%clk 0:02:32.6]}
11... Qd8 {[%clk 0:02:34.6]} 12. Bd3 {[%clk 0:01:55.2]} 12... a6 {[%clk
0:02:29.6]} 13. b4 {[%clk 0:01:50.9]} 13... Nxb4 {[%clk 0:01:38]} 14. Nbxd4
{[%clk 0:01:50.1]} 14... O-O {[%clk 0:01:29.9]} 15. Bxh7+ {[%clk 0:01:38.7]}
15... Kxh7 {[%clk 0:01:29.7]} 16. Ng5+ {[%clk 0:01:39]} 16... Kg6 {[%clk
0:01:24.1]} 17. Qg4 {[%clk 0:01:35.3]} 17... f5 {[%clk 0:01:24.4]} 18. Qg3
{[%clk 0:01:34.3]} 18... Bxd4 {[%clk 0:01:24.6]} 19. Nxe6+ {[%clk 0:01:33.5]}
19... Kf7 {[%clk 0:01:24.5]} 20. Nxd8+ {[%clk 0:01:32.5]} 20... Rxd8 {[%clk
0:01:24.2]} 21. c3 {[%clk 0:01:11.8]} 21... Nc2+ {[%clk 0:01:19.6]} 22. Kd1
{[%clk 0:01:11.7]} 22... Nxa1 {[%clk 0:00:57.3]} 23. cxd4 {[%clk 0:01:12.1]}
23... Nf8 {[%clk 0:00:57.7]} 24. Qc3 {[%clk 0:01:09.9]} 24... Rd7 {[%clk
0:00:58]} 25. Qxa1 {[%clk 0:01:09.2]} 25... Rc7 {[%clk 0:00:57.3]} 26. Qa2
{[%clk 0:01:03.6]} 26... Be6 {[%clk 0:00:57.1]} 27. Rf1 {[%clk 0:01:03.3]} 27...
Rac8 {[%clk 0:00:56.9]} 28. Rf3 {[%clk 0:01:02.9]} 28... Rc4 {[%clk 0:00:56.7]}
29. Qb2 {[%clk 0:00:58.1]} 29... R8c7 {[%clk 0:00:55.8]} 30. Rb3 {[%clk
0:00:55.9]} 30... Bc8 {[%clk 0:00:55.7]} 31. Rc3 {[%clk 0:00:48.6]} 31... Ne6
{[%clk 0:00:55.7]} 32. Rxc4 {[%clk 0:00:47.7]} 32... Rxc4 {[%clk 0:00:56.6]} 33.
Be3 {[%clk 0:00:45.6]} 33... g5 {[%clk 0:00:54.7]} 34. fxg5 {[%clk 0:00:44.4]}
34... f4 {[%clk 0:00:55.2]} 35. Bf2 {[%clk 0:00:44.2]} 35... Nxg5 {[%clk
0:00:53.5]} 36. h3 {[%clk 0:00:41.4]} 36... Ne4 {[%clk 0:00:53.6]} 37. Be1
{[%clk 0:00:41.2]} 37... Kg6 {[%clk 0:00:48.6]} 38. Ke2 {[%clk 0:00:40.2]} 38...
Kh5 {[%clk 0:00:39.3]} 39. Kf3 {[%clk 0:00:38.4]} 39... Kg5 {[%clk 0:00:37.4]}
40. Qb6 {[%clk 0:00:33.6]} 40... Kf5 {[%clk 0:00:25.4]} 41. Qh6 {[%clk
0:00:23.3]} 41... Ng5+ {[%clk 0:00:23.7]} 42. Ke2 {[%clk 0:00:23.4]} 42... Ne6
{[%clk 0:00:19.2]} 43. Qh7+ {[%clk 0:00:16.9]} 43... Kg5 {[%clk 0:00:19.7]} 44.
Bh4# {[%clk 0:00:16.6]} 1-0

[Event "*** SCC Grand Prix: Titled Tuesday Blitz"]
[Site "Chess.com"]
[Date "2020.08.25"]
[Round "2"]
[White "dosto07"]
[Black "A-Fier"]
[Result "0-1"]
[WhiteElo "2325"]
[BlackElo "2753"]
[TimeControl "180+1"]
[EndTime "10:19:21 PDT"]
[Termination "A-Fier won on time"]

1. e4 {[%clk 0:03:00.4]} 1... c5 {[%clk 0:02:58.6]} 2. Nf3 {[%clk 0:02:59.6]}
2... d6 {[%clk 0:02:58.7]} 3. Bb5+ {[%clk 0:02:58.5]} 3... Nc6 {[%clk
0:02:57.3]} 4. O-O {[%clk 0:02:57.7]} 4... Bd7 {[%clk 0:02:54.2]} 5. Re1 {[%clk
0:02:55.9]} 5... Nf6 {[%clk 0:02:48.4]} 6. c3 {[%clk 0:02:54.6]} 6... a6 {[%clk
0:02:39.1]} 7. Bf1 {[%clk 0:02:53.4]} 7... Bg4 {[%clk 0:02:38.4]} 8. h3 {[%clk
0:02:43.1]} 8... Bxf3 {[%clk 0:02:31.6]} 9. Qxf3 {[%clk 0:02:42.1]} 9... g6
{[%clk 0:02:32.5]} 10. d3 {[%clk 0:02:40.6]} 10... Bg7 {[%clk 0:02:29.7]} 11.
Be3 {[%clk 0:02:39.7]} 11... O-O {[%clk 0:02:30.2]} 12. Nd2 {[%clk 0:02:39]}
12... Nd7 {[%clk 0:02:30.8]} 13. Qd1 {[%clk 0:02:37.3]} 13... b5 {[%clk
0:02:31.1]} 14. Nf3 {[%clk 0:02:24.7]} 14... Nb6 {[%clk 0:02:15.6]} 15. d4
{[%clk 0:02:20.3]} 15... cxd4 {[%clk 0:02:15.3]} 16. cxd4 {[%clk 0:02:19.5]}
16... Rc8 {[%clk 0:02:14.4]} 17. Qd2 {[%clk 0:02:08.1]} 17... d5 {[%clk
0:02:08.7]} 18. e5 {[%clk 0:02:02.5]} 18... Nc4 {[%clk 0:02:08.1]} 19. Bxc4
{[%clk 0:01:59.3]} 19... dxc4 {[%clk 0:02:06.9]} 20. Rad1 {[%clk 0:01:49.9]}
20... e6 {[%clk 0:01:54.1]} 21. Bh6 {[%clk 0:01:47.1]} 21... Qd5 {[%clk
0:01:53.7]} 22. Qf4 {[%clk 0:01:40.1]} 22... b4 {[%clk 0:01:50.9]} 23. Qh4
{[%clk 0:01:32.1]} 23... c3 {[%clk 0:01:42.3]} 24. bxc3 {[%clk 0:01:24.9]} 24...
bxc3 {[%clk 0:01:43.2]} 25. Ng5 {[%clk 0:01:23.8]} 25... c2 {[%clk 0:01:38.1]}
26. Bxg7 {[%clk 0:01:17.9]} 26... h5 {[%clk 0:01:37.8]} 27. Rc1 {[%clk
0:01:03.5]} 27... Kxg7 {[%clk 0:01:37.8]} 28. Nf3 {[%clk 0:01:00.3]} 28... Nb4
{[%clk 0:01:35.6]} 29. Qf6+ {[%clk 0:00:57.7]} 29... Kg8 {[%clk 0:01:35.6]} 30.
g4 {[%clk 0:00:53.2]} 30... Qd8 {[%clk 0:01:27.7]} 31. Re2 {[%clk 0:00:36.1]}
31... Qxf6 {[%clk 0:01:24.5]} 32. exf6 {[%clk 0:00:35.2]} 32... Rc3 {[%clk
0:01:24.6]} 33. a3 {[%clk 0:00:21.8]} 33... Nd5 {[%clk 0:01:22]} 34. Ne1 {[%clk
0:00:18]} 34... Rxh3 {[%clk 0:01:20.9]} 35. gxh5 {[%clk 0:00:15.5]} 35... gxh5
{[%clk 0:01:19.3]} 36. Rexc2 {[%clk 0:00:14.1]} 36... Kh7 {[%clk 0:01:17.6]} 37.
Rc8 {[%clk 0:00:08.9]} 37... Rxc8 {[%clk 0:01:17.4]} 38. Rxc8 {[%clk 0:00:08.5]}
38... Nxf6 {[%clk 0:01:17.6]} 39. Rc7 {[%clk 0:00:07.5]} 39... Kg6 {[%clk
0:01:16.3]} 40. Kg2 {[%clk 0:00:07.3]} 40... Rxa3 {[%clk 0:01:16.8]} 41. Nf3
{[%clk 0:00:06.9]} 41... Nd5 {[%clk 0:01:17.3]} 42. Ne5+ {[%clk 0:00:06.6]}
42... Kg5 {[%clk 0:01:17.7]} 43. Rxf7 {[%clk 0:00:07.3]} 43... Nf4+ {[%clk
0:01:18.3]} 44. Kh2 {[%clk 0:00:05.5]} 44... Ra2 {[%clk 0:01:17.4]} 45. Kg3
{[%clk 0:00:04.4]} 45... h4+ {[%clk 0:01:17]} 46. Kf3 {[%clk 0:00:03.7]} 46...
Ra3+ {[%clk 0:01:17.3]} 47. Ke4 {[%clk 0:00:03.6]} 47... Nd5 {[%clk 0:01:17.9]}
48. Rg7+ {[%clk 0:00:03.3]} 48... Kf6 {[%clk 0:01:15.7]} 49. Rg6+ {[%clk
0:00:03.4]} 49... Ke7 {[%clk 0:01:16.3]} 50. Rh6 {[%clk 0:00:03]} 50... h3
{[%clk 0:01:13.4]} 51. Rh7+ {[%clk 0:00:02.1]} 51... Ke8 {[%clk 0:01:11.9]} 52.
Ng6 {[%clk 0:00:01.9]} 52... Nf6+ {[%clk 0:01:11.5]} 0-1

[Event "*** SCC Grand Prix: Titled Tuesday Blitz"]
[Site "Chess.com"]
[Date "2020.08.25"]
[Round "2"]
[White "oganromchess"]
[Black "felipelobo"]
[Result "1-0"]
[WhiteElo "2406"]
[BlackElo "2126"]
[TimeControl "180+1"]
[EndTime "10:19:22 PDT"]
[Termination "oganromchess won on time"]

1. e4 {[%clk 0:03:00.9]} 1... c5 {[%clk 0:02:58.3]} 2. Ne2 {[%clk 0:02:57.8]}
2... e6 {[%clk 0:02:54.7]} 3. d4 {[%clk 0:02:54.8]} 3... cxd4 {[%clk 0:02:53.8]}
4. Nxd4 {[%clk 0:02:55.7]} 4... Nf6 {[%clk 0:02:53.3]} 5. Nc3 {[%clk 0:02:54.2]}
5... d6 {[%clk 0:02:51.4]} 6. Be3 {[%clk 0:02:48.5]} 6... Be7 {[%clk 0:02:49.2]}
7. g4 {[%clk 0:02:39.5]} 7... O-O {[%clk 0:02:46.8]} 8. g5 {[%clk 0:02:38.8]}
8... Nfd7 {[%clk 0:02:45.9]} 9. h4 {[%clk 0:02:38.1]} 9... a6 {[%clk 0:02:43.7]}
10. Rg1 {[%clk 0:02:31.4]} 10... Nc6 {[%clk 0:02:40.3]} 11. Nxc6 {[%clk
0:02:20.9]} 11... bxc6 {[%clk 0:02:41.2]} 12. h5 {[%clk 0:02:20.8]} 12... Rb8
{[%clk 0:02:36.7]} 13. g6 {[%clk 0:02:13.5]} 13... Rxb2 {[%clk 0:02:14.8]} 14.
gxh7+ {[%clk 0:02:07.5]} 14... Kh8 {[%clk 0:02:04.8]} 15. h6 {[%clk 0:01:31.5]}
15... g6 {[%clk 0:01:58.5]} 16. Bd4+ {[%clk 0:01:07.4]} 16... Bf6 {[%clk
0:01:56.9]} 17. Na4 {[%clk 0:00:24.6]} 17... Rb8 {[%clk 0:00:59.6]} 18. c3
{[%clk 0:00:21.2]} 18... Bxd4 {[%clk 0:00:44.6]} 19. Qxd4+ {[%clk 0:00:19.8]}
19... Qf6 {[%clk 0:00:44.7]} 20. Qxd6 {[%clk 0:00:19.3]} 20... Rd8 {[%clk
0:00:25]} 21. Rg3 {[%clk 0:00:17.8]} 21... Bb7 {[%clk 0:00:15.9]} 22. O-O-O
{[%clk 0:00:15.2]} 22... Ne5 {[%clk 0:00:14.6]} 23. Qc7 {[%clk 0:00:11.5]} 23...
Rxd1+ {[%clk 0:00:13.4]} 24. Kxd1 {[%clk 0:00:12.4]} 24... Rd8+ {[%clk
0:00:13.4]} 25. Kc2 {[%clk 0:00:12.2]} 25... Ba8 {[%clk 0:00:11.6]} 26. Nc5
{[%clk 0:00:09.6]} 26... Rf8 {[%clk 0:00:05.3]} 27. Qd6 {[%clk 0:00:08.4]} 27...
Qf4 {[%clk 0:00:04.3]} 28. Qxf8+ {[%clk 0:00:07]} 1-0

[Event "*** SCC Grand Prix: Titled Tuesday Blitz"]
[Site "Chess.com"]
[Date "2020.08.25"]
[Round "2"]
[White "attack2mateU"]
[Black "BigAl"]
[Result "1-0"]
[WhiteElo "2696"]
[BlackElo "2465"]
[TimeControl "180+1"]
[EndTime "10:19:24 PDT"]
[Termination "attack2mateU won by checkmate"]

1. e4 {[%clk 0:03:00.9]} 1... c6 {[%clk 0:03:00.2]} 2. Nc3 {[%clk 0:03:00.5]}
2... d5 {[%clk 0:03:00.7]} 3. Nf3 {[%clk 0:03:01.3]} 3... dxe4 {[%clk
0:03:01.1]} 4. Nxe4 {[%clk 0:03:02.2]} 4... Nf6 {[%clk 0:03:01.5]} 5. Qe2 {[%clk
0:03:02.4]} 5... Be6 {[%clk 0:03:01.3]} 6. Nc5 {[%clk 0:02:53.4]} 6... Bc8
{[%clk 0:02:48.3]} 7. d4 {[%clk 0:02:49.2]} 7... Nbd7 {[%clk 0:02:46.9]} 8. Nd3
{[%clk 0:02:30.7]} 8... Nb6 {[%clk 0:02:45.1]} 9. Nde5 {[%clk 0:02:28.9]} 9...
h6 {[%clk 0:02:35.8]} 10. g3 {[%clk 0:02:07.6]} 10... Bf5 {[%clk 0:02:35.4]} 11.
Bg2 {[%clk 0:01:59.2]} 11... e6 {[%clk 0:02:35.2]} 12. O-O {[%clk 0:01:59.9]}
12... Be7 {[%clk 0:02:32.8]} 13. c4 {[%clk 0:01:58.8]} 13... O-O {[%clk
0:02:31.7]} 14. Rd1 {[%clk 0:01:57.4]} 14... Bh7 {[%clk 0:02:19.7]} 15. Bf4
{[%clk 0:01:54.1]} 15... a5 {[%clk 0:02:18.7]} 16. Rac1 {[%clk 0:01:53.1]} 16...
a4 {[%clk 0:02:19.1]} 17. h4 {[%clk 0:01:33.9]} 17... a3 {[%clk 0:02:17.8]} 18.
b3 {[%clk 0:01:33.8]} 18... Bb4 {[%clk 0:02:02.2]} 19. g4 {[%clk 0:01:32.7]}
19... Ne4 {[%clk 0:01:57.4]} 20. Qe3 {[%clk 0:01:13.1]} 20... f6 {[%clk
0:01:44]} 21. Nd3 {[%clk 0:01:12.8]} 21... Be7 {[%clk 0:01:41.5]} 22. Nc5 {[%clk
0:01:11.9]} 22... f5 {[%clk 0:01:21.8]} 23. Nxe6 {[%clk 0:01:06.7]} 23... Qc8
{[%clk 0:01:18.9]} 24. Nxf8 {[%clk 0:01:03.5]} 24... Qxf8 {[%clk 0:01:18.8]} 25.
g5 {[%clk 0:00:57.1]} 25... Re8 {[%clk 0:01:04.8]} 26. Ne5 {[%clk 0:00:53.8]}
26... Kh8 {[%clk 0:00:57.8]} 27. Bxe4 {[%clk 0:00:31]} 27... fxe4 {[%clk
0:00:57]} 28. g6 {[%clk 0:00:30.7]} 28... Bg8 {[%clk 0:00:56.8]} 29. Qxe4 {[%clk
0:00:24.3]} 29... Bxh4 {[%clk 0:00:45.1]} 30. Rc3 {[%clk 0:00:19.1]} 30... Nd7
{[%clk 0:00:34.8]} 31. Rf3 {[%clk 0:00:16.7]} 31... Nf6 {[%clk 0:00:34.6]} 32.
Qe3 {[%clk 0:00:16.4]} 32... Ng4 {[%clk 0:00:28.9]} 33. Qd2 {[%clk 0:00:14.2]}
33... Nxf2 {[%clk 0:00:22.9]} 34. Rxf2 {[%clk 0:00:13.9]} 34... Bxf2+ {[%clk
0:00:22.9]} 35. Qxf2 {[%clk 0:00:14.8]} 35... Qf5 {[%clk 0:00:22.9]} 36. Re1
{[%clk 0:00:10.5]} 36... b5 {[%clk 0:00:20.1]} 37. Bg3 {[%clk 0:00:10.6]} 37...
Qg5 {[%clk 0:00:17.7]} 38. Kg2 {[%clk 0:00:08.7]} 38... bxc4 {[%clk 0:00:16.3]}
39. Nf7+ {[%clk 0:00:08.5]} 39... Bxf7 {[%clk 0:00:15.6]} 40. Rxe8+ {[%clk
0:00:09.1]} 40... Bg8 {[%clk 0:00:14.6]} 41. Rxg8+ {[%clk 0:00:08.9]} 41... Kxg8
{[%clk 0:00:14.4]} 42. Qf7+ {[%clk 0:00:09.7]} 42... Kh8 {[%clk 0:00:14.5]} 43.
Qf8# {[%clk 0:00:10.4]} 1-0